bitfinex/quotes_ETHUSD_20240823
["timestamp","ask_amount","ask_price","bid_price","bid_amount"]
[1724410151071,3.74027,2673.6,2673.5,2.39892944]
[1724410152833,3.74027,2673.6,2673.5,0.11082944]
[1724410155669,7.48054,2673.6,2673.5,0.11082944]
[1724410155873,8.03054,2673.6,2673.5,0.11082944]
[1724410156601,8.03054,2673.6,2673.4,0.0116259]
[1724410156602,7.48082,2673.5,2673.4,0.0116259]
[1724410156896,10.38737986,2673.5,2673.4,0.0116259]
[1724410158879,10.38714265,2673.5,2673.4,0.0116259]
[1724410161254,6.64673265,2673.5,2673.4,0.0116259]
[1724410161661,4.29041,2673.5,2673.4,0.0116259]
[1724410163455,6.64665291,2673.5,2673.4,0.0116259]
[1724410164051,4.29041,2673.5,2673.4,0.0116259]
[1724410164653,6.6466595,2673.5,2673.4,0.0116259]
[1724410165791,6.6466595,2673.5,2673.4,0.12256825]
[1724410166259,2.9062495,2673.5,2673.4,0.12256825]
[1724410167052,6.6466595,2673.5,2673.4,0.12256825]
[1724410168781,6.64677088,2673.5,2673.4,0.12256825]
[1724410171590,6.64676109,2673.5,2673.4,0.12256825]
[1724410172198,4.29041,2673.5,2673.4,0.12256825]
[1724410173293,6.64673665,2673.5,2673.4,0.12256825]
[1724410173495,6.64670916,2673.5,2673.4,0.12256825]
[1724410174694,4.29041,2673.5,2673.4,0.12256825]
[1724410174902,6.64698006,2673.5,2673.4,0.12256825]
[1724410175963,2.35657006,2673.5,2673.4,0.12256825]
[1724410176159,2.35657006,2673.6,2673.4,0.73978707]
[1724410176365,2.35657006,2673.6,2673.4,0.12256825]
[1724410176898,6.09687322,2673.6,2673.4,0.12256825]
[1724410177099,2.35658322,2673.5,2673.4,0.12256825]
[1724410177263,3.74029,2673.6,2673.4,0.12256825]
[1724410177264,6.09687322,2673.6,2673.4,0.12256825]
[1724410178102,3.74041,2673.5,2673.4,0.12256825]
[1724410178285,6.09699322,2673.5,2673.4,0.12256825]
[1724410178467,6.09685272,2673.5,2673.4,0.12256825]
[1724410179401,3.74041,2673.5,2673.4,0.12256825]
[1724410182617,6.09685272,2673.5,2673.4,0.12256825]
[1724410183417,6.09685273,2673.5,2673.4,0.12256825]
[1724410188201,6.09642984,2673.5,2673.4,0.12256825]
[1724410190228,3.74041,2673.5,2673.4,0.70795213]
[1724410193528,3.74041,2673.5,2673.4,0.7079519]
[1724410193827,3.74041,2673.5,2673.4,0.70795538]
[1724410194543,6.09655861,2673.5,2673.4,0.70795538]
[1724410194747,3.74041,2673.5,2673.4,0.70795538]
[1724410196144,6.09655032,2673.5,2673.4,0.70795538]
[1724410196852,6.09655032,2673.5,2673.4,0.12256825]
[1724410197053,3.74041,2673.5,2673.4,0.70795402]
[1724410197348,6.09655032,2673.5,2673.4,0.70795402]
[1724410197916,6.09669849,2673.5,2673.4,0.70795402]
[1724410199123,6.09669849,2673.5,2673.4,0.12256825]
[1724410199350,6.09669849,2673.5,2673.4,0.7079555]
[1724410199728,6.09669849,2673.5,2673.4,0.70794534]
[1724410200240,6.09669849,2673.5,2673.4,0.70794766]
[1724410200551,6.09669849,2673.5,2673.4,0.12256825]
[1724410201414,6.09777491,2673.5,2673.4,0.12256825]
[1724410202822,6.09784747,2673.5,2673.4,0.12256825]
[1724410203526,9.90332,2673.5,2673.4,0.12256825]
[1724410203725,10.45332,2673.5,2673.4,0.12256825]
[1724410203950,13.20366372,2673.5,2673.4,0.0116259]
[1724410204425,16.94407372,2673.5,2673.4,0.0116259]
[1724410204637,14.19373,2673.5,2673.4,0.0116259]
[1724410207276,16.94248153,2673.5,2673.4,0.0116259]
[1724410208277,13.20207153,2673.5,2673.4,0.0116259]
[1724410208478,14.30272513,2673.5,2673.4,0.0116259]
[1724410210568,10.77957153,2673.5,2673.4,0.0116259]
[1724410210869,8.03082,2673.5,2673.4,0.12268866]
[1724410211629,10.77893606,2673.5,2673.4,0.12268866]
[1724410212263,10.77893606,2673.5,2673.4,0.0116259]
[1724410212427,8.03082,2673.5,2673.4,0.0116259]
[1724410212827,10.77893606,2673.5,2673.4,0.0116259]
[1724410213230,8.03082,2673.5,2673.4,0.0116259]
[1724410214819,15.2240836,2673.5,2673.4,0.0116259]
[1724410215098,17.97219966,2673.5,2673.4,0.0116259]
[1724410216104,17.97107461,2673.5,2673.4,0.0116259]
[1724410216460,15.2240836,2673.5,2673.4,0.0116259]
[1724410216672,18.46896673,2673.5,2673.4,0.0116259]
[1724410216913,22.20937673,2673.5,2673.4,0.0116259]
[1724410218910,21.9644936,2673.5,2673.4,0.0116259]
[1724410220072,25.20538544,2673.5,2673.4,0.0116259]
[1724410220606,25.20522848,2673.5,2673.4,0.0116259]
[1724410221314,25.7049036,2673.5,2673.4,5.9e-06]
[1724410221646,25.83633484,2673.5,2673.4,5.9e-06]
[1724410221811,25.7049036,2673.5,2673.4,5.9e-06]
[1724410222225,29.59103076,2673.5,2673.4,5.9e-06]
[1724410224240,25.7049036,2673.5,2673.4,5.9e-06]
[1724410225248,21.9644936,2673.5,2673.4,5.9e-06]
[1724410229166,25.19758076,2673.5,2673.4,5.9e-06]
[1724410230150,28.93799076,2673.5,2673.4,5.9e-06]
[1724410230758,25.19758076,2673.5,2673.4,5.9e-06]
[1724410231338,21.9644936,2673.5,2673.4,5.9e-06]
[1724410231552,25.19622689,2673.5,2673.4,5.9e-06]
[1724410232052,21.9644936,2673.5,2673.4,5.9e-06]
[1724410232365,25.7049036,2673.5,2673.4,5.9e-06]
[1724410236919,28.93435108,2673.5,2673.4,5.9e-06]
[1724410237778,25.7049036,2673.5,2673.4,5.9e-06]
[1724410241262,11.22501,2672.6,2672.5,2.4537]
[1724410241596,12.8756636,2672.6,2672.5,2.56198625]
[1724410242287,12.8756636,2672.6,2672.5,0.10828625]
[1724410242461,7.4839,2672.4,2672.3,2.3575]
[1724410242666,9.1345536,2672.4,2672.3,2.46599288]
[1724410243211,12.8765036,2672.4,2672.3,2.46599288]
[1724410244061,15.8765036,2672.4,2672.3,2.46599288]
[1724410246102,15.8765036,2672.4,2672.3,2.3575]
[1724410246311,15.8765036,2672.4,2672.3,2.46606496]
[1724410249015,15.8765036,2672.4,2672.3,0.10856496]
[1724410249337,11.22669,2672.2,2672.1,2.4569]
[1724410249545,12.8773436,2672.2,2672.1,2.56592632]
[1724410251938,12.8773436,2672.2,2672.1,2.4569]
[1724410252725,7.48474,2672.1,2672.0,15.0]
[1724410252879,8.03474,2672.1,2672.0,15.10913446]
[1724410253279,11.77711,2672.1,2672.0,15.10913446]
[1724410257927,15.51948,2672.1,2672.0,15.10913446]
[1724410258132,20.86084275,2672.1,2672.0,15.10913446]
[1724410258294,18.51948,2672.1,2672.0,15.10913446]
[1724410260923,20.86191572,2672.1,2672.0,15.10913446]
[1724410261329,18.51948,2672.1,2672.0,15.10913446]
[1724410262904,21.25226589,2672.1,2672.0,15.10913446]
[1724410263134,18.51948,2672.1,2672.0,15.10913446]
[1724410266130,11.03474,2672.1,2672.0,15.10913446]
[1724410266353,12.1353936,2672.1,2672.0,15.10913446]
[1724410266495,14.47823907,2672.1,2672.0,15.10913446]
[1724410267223,11.5853936,2672.1,2672.0,15.10913446]
[1724410268043,3.74226,2672.2,2672.0,15.83225245]
[1724410268246,3.74218,2672.3,2672.1,2.2674]
[1724410268390,3.74223,2672.2,2672.1,2.2674]
[1724410269709,4.29223,2672.2,2672.1,2.2674]
[1724410271004,4.29223,2672.2,2672.1,2.36980335]
[1724410271820,8.03446,2672.2,2672.1,2.36980335]
[1724410274072,9.1351136,2672.2,2672.1,2.36980335]
[1724410282018,4.29223,2672.2,2672.1,2.36980335]
[1724410282218,0.55,2672.2,2672.1,2.36980335]
[1724410283561,6.15797674,2672.4,2672.1,3.47973162]
[1724410283854,0.06943503,2672.4,2672.2,2.4585]
[1724410284229,0.06943503,2672.4,2672.3,2.56051476]
[1724410284874,4.36138503,2672.4,2672.3,2.56051476]
[1724410285370,0.61943503,2672.4,2672.3,2.56051476]
[1724410285572,0.61943503,2672.4,2672.3,2.92755906]
[1724410285771,0.06943503,2672.4,2672.3,2.92755906]
[1724410288280,3.81138503,2672.4,2672.3,2.92755906]
[1724410289783,3.81138503,2672.4,2672.3,2.56051476]
[1724410289981,7.55333503,2672.4,2672.3,2.56051476]
[1724410290281,8.10333503,2672.4,2672.3,2.56051476]
[1724410291570,9.20398863,2672.4,2672.3,0.10201476]
[1724410291969,3.74223,2672.2,2672.1,2.4799]
[1724410293289,4.29223,2672.2,2672.1,2.4799]
[1724410293489,3.74215,2672.3,2672.1,2.4799]
[1724410294279,3.74223,2672.2,2672.1,2.4799]
[1724410294480,7.48432,2672.3,2672.1,2.4799]
[1724410295203,3.74215,2672.3,2672.1,2.4799]
[1724410295366,0.06943503,2672.4,2672.1,2.4799]
[1724410295367,7.48446,2672.2,2672.1,2.4799]
[1724410295551,4.29223,2672.2,2672.1,2.4799]
[1724410301214,4.29223,2672.2,2672.1,2.58205411]
[1724410305606,4.29223,2672.2,2672.1,0.10215411]
[1724410310906,4.29223,2672.2,2672.1,2.59005411]
[1724410311897,0.55,2672.2,2672.1,2.59005411]
[1724410312104,4.29223,2672.2,2672.1,2.59005411]
[1724410312558,2.4190647,2672.4,2672.2,2.4714]
[1724410312757,2.4190647,2672.4,2672.1,1.86115952]
[1724410312758,1.17008863,2672.4,2672.3,0.10201956]
[1724410312974,1.17008863,2672.4,2672.3,2.4714]
[1724410313294,0.06943503,2672.4,2672.3,2.57335227]
[1724410313499,0.06943503,2672.4,2672.3,3.38081704]
[1724410314581,0.06943503,2672.4,2672.3,2.57335227]
[1724410315464,3.81138503,2672.4,2672.3,2.57335227]
[1724410315668,8.10333503,2672.4,2672.3,0.10195227]
[1724410315865,10.4529647,2672.4,2672.3,0.10195227]
[1724410316059,3.74216,2672.3,2672.1,2.4714]
[1724410316253,2.42116278,2672.4,2672.2,2.4714]
[1724410316490,0.06943503,2672.4,2672.2,2.4714]
[1724410316890,3.81140503,2672.4,2672.2,2.4714]
[1724410317201,6.16329031,2672.4,2672.2,2.4714]
[1724410318491,3.74209,2672.3,2672.2,2.4714]
[1724410320455,3.74223,2672.2,2672.0,15.0]
[1724410320660,3.74237,2672.1,2672.0,15.0]
[1724410320861,4.29237,2672.1,2672.0,15.0]
[1724410321893,6.0944041,2672.3,2672.0,15.58567122]
[1724410322097,0.55,2672.2,2672.0,15.0]
[1724410322269,2.42161913,2672.4,2672.1,3.04944018]
[1724410322480,2.42161913,2672.4,2672.1,2.4638]
[1724410323601,6.16357913,2672.4,2672.1,2.4638]
[1724410324202,2.42161913,2672.4,2672.1,2.4638]
[1724410324671,4.77419984,2672.4,2672.1,2.4638]
[1724410325018,2.42201574,2672.4,2672.1,2.4638]
[1724410325181,2.42201574,2672.4,2672.1,3.54185821]
[1724410325911,6.16397574,2672.4,2672.1,3.54185821]
[1724410326609,9.90600574,2672.4,2672.1,3.54185821]
[1724410326806,3.74211,2672.3,2672.1,3.54185821]
[1724410327167,6.16396574,2672.4,2672.1,3.54185821]
[1724410330820,6.16396574,2672.4,2672.2,0.10186815]
[1724410331111,9.90599574,2672.4,2672.2,0.10186815]
[1724410331637,6.16396574,2672.4,2672.2,0.10186815]
[1724410331996,6.16396574,2672.4,2672.2,2.080077]
[1724410334203,0.06943503,2672.4,2672.2,2.080077]
[1724410334833,0.06943503,2672.4,2672.3,2.4225]
[1724410335236,0.06943503,2672.4,2672.3,2.52428405]
[1724410335446,0.06943503,2672.4,2672.3,6.85197266]
[1724410335640,0.06943503,2672.4,2672.3,8.21927217]
[1724410337615,0.06943503,2672.4,2672.3,4.47718217]
[1724410338712,0.06943503,2672.4,2672.3,3.89158356]
[1724410339245,0.06943503,2672.4,2672.3,4.47714923]
[1724410340209,0.06943503,2672.4,2672.3,3.10984972]
[1724410340846,0.06943503,2672.4,2672.3,2.52428405]
[1724410341837,0.06943503,2672.4,2672.3,3.1098751]
[1724410342054,0.06943503,2672.4,2672.3,2.52428405]
[1724410342232,0.06943503,2672.4,2672.3,3.10987421]
[1724410343351,0.06943503,2672.4,2672.3,3.99290452]
[1724410343844,0.06943503,2672.4,2672.3,11.47708452]
[1724410345436,0.06943503,2672.4,2672.3,10.89149436]
[1724410345751,0.06943503,2672.4,2672.3,11.47703833]
[1724410346536,0.06943503,2672.4,2672.3,14.47703833]
[1724410349250,0.06943503,2672.4,2672.3,13.89149436]
[1724410349450,0.06943503,2672.4,2672.3,14.47699312]
[1724410351616,0.06943503,2672.4,2672.3,18.68746621]
[1724410351815,0.06943503,2672.4,2672.3,19.07796874]
[1724410352022,0.06943503,2672.4,2672.3,19.07792991]
[1724410353643,0.06943503,2672.4,2672.3,20.01466839]
[1724410354240,0.06943503,2672.4,2672.3,20.01047762]
[1724410354582,0.06943503,2672.4,2672.3,16.26838762]
[1724410354726,0.06943503,2672.4,2672.3,16.90065813]
[1724410355731,0.06943503,2672.4,2672.3,15.80000453]
[1724410355931,0.06943503,2672.4,2672.3,16.90065813]
[1724410358864,0.06943503,2672.4,2672.3,16.31521818]
[1724410359161,0.06943503,2672.4,2672.3,16.90069221]
[1724410359465,0.06943503,2672.4,2672.3,16.90069937]
[1724410360351,6.22187,2673.1,2672.6,3.74161]
[1724410360557,6.22187,2673.1,2672.6,4.8422636]
[1724410360732,6.22187,2673.1,2672.7,0.10082269]
[1724410361281,6.22187,2673.1,2672.7,0.00102269]
[1724410361474,6.22187,2673.1,2672.7,0.09741195]
[1724410361760,2.4808,2673.1,2672.7,3.83886195]
[1724410363030,3.74083,2673.2,2672.7,3.83886195]
[1724410367991,3.74083,2673.2,2672.7,0.09741195]
[1724410368186,3.74083,2673.2,2672.8,0.58547356]
[1724410368374,3.74083,2673.2,2672.7,0.09741195]
[1724410368547,3.74083,2673.2,2672.9,0.09715016]
[1724410368747,3.74083,2673.2,2672.8,0.09723422]
[1724410369002,3.74083,2673.2,2673.0,0.0970661]
[1724410369362,3.74083,2673.2,2672.7,3.74151]
[1724410369699,6.18957,2673.3,2672.8,3.74139]
[1724410369882,6.18957,2673.3,2672.8,4.42407895]
[1724410369883,0.55,2673.2,2672.8,4.42407895]
[1724410370204,0.55,2673.2,2672.8,4.93927782]
[1724410370350,3.74056,2673.4,2672.9,3.74118]
[1724410370789,3.74056,2673.4,2673.0,0.0970661]
[1724410372362,6.07919,2673.5,2673.0,3.8380861]
[1724410372571,9.81968,2673.5,2673.0,3.8380861]
[1724410372786,6.07919,2673.5,2673.0,3.8380861]
[1724410373406,8.42730712,2673.5,2673.0,3.8380861]
[1724410373708,12.16797684,2673.5,2673.0,3.8380861]
[1724410374202,3.74055,2673.4,2673.0,3.8380861]
[1724410375185,3.74055,2673.4,2673.0,0.0970661]
[1724410378791,3.74046,2673.5,2673.1,0.58541023]
[1724410379101,3.74046,2673.5,2673.2,0.09681154]
[1724410379484,3.74046,2673.5,2673.0,2.2622365]
[1724410379816,3.74056,2673.4,2673.1,0.58540357]
[1724410379979,3.74056,2673.4,2673.0,2.2622365]
[1724410380181,3.74056,2673.4,2673.2,0.09681154]
[1724410380580,3.74056,2673.4,2673.0,1.1006536]
[1724410380801,3.7408,2673.3,2672.9,2.4094]
[1724410381004,7.48159,2673.3,2673.1,0.09689558]
[1724410381177,7.48159,2673.3,2673.0,0.09697963]
[1724410381385,3.74079,2673.3,2673.1,0.09689558]
[1724410381712,3.74077,2673.3,2672.9,2.4094]
[1724410381909,3.74077,2673.3,2673.2,0.09681154]
[1724410382379,3.74077,2673.3,2672.9,2.4094]
[1724410382578,3.74077,2673.3,2673.0,0.58544628]
[1724410382776,3.74077,2673.3,2673.0,0.09697963]
[1724410383344,3.7409,2673.2,2673.0,0.09697963]
[1724410383520,3.74097,2673.1,2673.0,0.09697963]
[1724410383837,3.74097,2673.1,2672.8,3.0]
[1724410383985,3.74097,2673.1,2673.0,0.09697963]
[1724410384188,3.74097,2673.1,2672.9,0.09706369]
[1724410384433,3.7409,2673.2,2673.0,0.09697963]
[1724410384738,3.7409,2673.2,2672.8,3.0]
[1724410385011,3.7409,2673.2,2673.1,0.09689558]
[1724410385219,3.7409,2673.2,2672.8,3.0]
[1724410385414,3.7409,2673.2,2673.1,0.09689558]
[1724410385601,3.7409,2673.2,2672.8,3.0]
[1724410385817,3.7409,2673.2,2672.9,0.58544938]
[1724410385996,3.7409,2673.2,2673.0,0.58544938]
[1724410386195,3.7409,2673.2,2673.0,0.09388852]
[1724410386634,3.7409,2673.2,2672.8,3.0]
[1724410386936,3.7409,2673.2,2672.9,0.5854499]
[1724410387132,3.7409,2673.2,2673.0,0.5854499]
[1724410387439,7.48222,2673.0,2672.3,2.9531438]
[1724410387635,7.1916604,2672.9,2672.4,0.58556019]
[1724410387934,7.1916604,2672.9,2672.5,0.58556019]
[1724410387935,3.74154,2672.7,2672.5,0.58556019]
[1724410388101,3.74154,2672.7,2672.3,3.03722838]
[1724410388297,3.74154,2672.7,2672.4,0.58556185]
[1724410388510,3.74154,2672.7,2672.5,0.58556185]
[1724410388711,7.1916604,2672.9,2672.3,6.77929838]
[1724410388712,10.9330304,2672.9,2672.3,6.77929838]
[1724410388900,10.9330304,2672.9,2672.4,3.58555364]
[1724410389103,10.9330304,2672.9,2672.5,0.58555364]
[1724410389319,10.9330304,2672.9,2672.4,3.0]
[1724410389499,10.9330304,2672.9,2672.5,0.58555511]
[1724410389697,3.74139,2672.8,2672.4,3.0]
[1724410390335,3.74139,2672.8,2672.5,0.58555423]
[1724410390645,3.74139,2672.8,2672.4,3.0]
[1724410390850,3.74139,2672.8,2672.5,0.67645077]
[1724410391021,3.74139,2672.8,2672.5,0.09089579]
[1724410395028,2.35055237,2672.9,2672.5,0.09089579]
[1724410395231,6.09184237,2672.9,2672.5,0.09089579]
[1724410395432,3.74129,2672.9,2672.5,0.09089579]
[1724410395741,6.09184237,2672.9,2672.5,0.09089579]
[1724410395912,3.74129,2672.9,2672.5,0.09089579]
[1724410397558,3.74129,2672.9,2672.5,0.09089579]
[1724410406388,3.74143,2672.8,2672.5,0.09089579]
[1724410407045,3.74167,2672.6,2672.5,0.09089579]
[1724410407245,3.74206,2672.4,2672.2,7.41]
[1724410407458,4.29209,2672.3,2672.2,7.41]
[1724410412375,4.29209,2672.3,2672.0,15.0]
[1724410417092,3.74223,2672.2,2672.0,15.0]
[1724410418912,6.6398,2672.3,2672.0,15.0]
[1724410419278,4.2921,2672.3,2672.0,15.0]
[1724410420418,0.55,2672.3,2672.0,15.0]
[1724410420566,9.85226,2672.5,2672.0,15.0]
[1724410420567,4.292,2672.4,2672.0,15.0]
[1724410421003,4.292,2672.4,2672.1,0.09199404]
[1724410421796,4.292,2672.4,2672.1,2.34779404]
[1724410428123,3.74216,2672.3,2672.1,0.09199404]
[1724410428437,3.74223,2672.2,2672.1,0.06789252]
[1724410429140,9.82806,2672.2,2672.1,0.06789252]
[1724410429421,10.37806,2672.2,2672.1,0.06789252]
[1724410429600,12.72748587,2672.2,2672.1,0.06789252]
[1724410430006,16.46971587,2672.2,2672.1,0.06789252]
[1724410430708,14.12029,2672.2,2672.1,0.06789252]
[1724410433339,17.79952,2672.2,2672.1,0.06789252]
[1724410433942,11.22711,2672.1,2672.0,15.0]
[1724410434231,12.8777636,2672.1,2672.0,14.945]
[1724410434410,12.8777636,2672.1,2672.0,15.01077348]
[1724410434610,15.22635905,2672.1,2672.0,15.01077348]
[1724410434931,12.8777636,2672.1,2672.0,15.01077348]
[1724410435097,15.22637126,2672.1,2672.0,15.01077348]
[1724410435700,9.1353936,2672.1,2672.0,15.01077348]
[1724410436140,11.48400126,2672.1,2672.0,15.01077348]
[1724410436299,9.1353936,2672.1,2672.0,15.01077348]
[1724410436921,11.48400126,2672.1,2672.0,15.01077348]
[1724410437657,9.1353936,2672.1,2672.0,15.01077348]
[1724410437843,11.48400126,2672.1,2672.0,15.01077348]
[1724410438021,9.1353936,2672.1,2672.0,15.01077348]
[1724410439763,9.1353936,2672.1,2672.0,14.945]
[1724410440172,9.1353936,2672.1,2672.0,15.01077348]
[1724410440871,11.48273813,2672.1,2672.0,15.01077348]
[1724410441036,9.1353936,2672.1,2672.0,15.01077348]
[1724410445064,12.8777636,2672.1,2672.0,15.01077348]
[1724410445271,11.48238241,2672.1,2672.0,15.01077348]
[1724410446701,9.1353936,2672.1,2672.0,15.01077348]
[1724410447106,11.48238241,2672.1,2672.0,15.01077348]
[1724410447269,11.48230238,2672.1,2672.0,15.01077348]
[1724410447773,9.1353936,2672.1,2672.0,15.01077348]
[1724410448826,8.03474,2672.1,2672.0,15.01077348]
[1724410451576,6.08922878,2672.2,2672.1,2.3702]
[1724410451782,3.74232,2672.2,2672.1,2.3702]
[1724410451994,3.74232,2672.2,2672.1,2.43393245]
[1724410452717,7.48464,2672.2,2672.1,0.06373245]
[1724410453016,8.03464,2672.2,2672.1,0.06373245]
[1724410457834,10.38331022,2672.2,2672.1,0.06373245]
[1724410461754,10.38452815,2672.2,2672.1,0.06373245]
[1724410467175,8.03464,2672.2,2672.1,0.06373245]
[1724410475844,4.29232,2672.2,2672.1,0.06373245]
[1724410477487,8.03464,2672.2,2672.1,0.06373245]
[1724410482695,14.52148032,2672.2,2672.1,0.06373245]
[1724410482976,14.16086,2672.2,2672.1,0.06373245]
[1724410486985,17.40325526,2672.2,2672.1,0.06373245]
[1724410487192,14.16086,2672.2,2672.1,0.06373245]
[1724410487676,17.40325526,2672.2,2672.1,0.06373245]
[1724410488283,14.16086,2672.2,2672.1,0.06373245]
[1724410489213,7.48464,2672.2,2672.1,0.06373245]
[1724410490788,8.03464,2672.2,2672.1,0.06373245]
[1724410494320,10.77970872,2672.2,2672.1,0.06373245]
[1724410494820,6.48716872,2672.3,2672.1,3.9135057]
[1724410495011,3.7421,2672.3,2672.2,2.4358]
[1724410495397,3.7421,2672.3,2672.2,2.4998023]
[1724410495603,3.7421,2672.3,2672.2,2.89443548]
[1724410496190,4.2921,2672.3,2672.2,2.89443548]
[1724410496391,8.0342,2672.3,2672.2,2.89443548]
[1724410496729,8.0342,2672.3,2672.2,2.4998023]
[1724410497130,4.2921,2672.3,2672.2,2.4998023]
[1724410497292,3.7421,2672.3,2672.2,2.4998023]
[1724410498492,7.48419,2672.3,2672.2,2.4998023]
[1724410498993,3.74209,2672.3,2672.2,2.4998023]
[1724410499534,3.74209,2672.3,2672.2,4.39436986]
[1724410499726,3.74205,2672.4,2672.3,2.326]
[1724410500072,4.29205,2672.4,2672.3,2.3899182]
[1724410500638,6.09477913,2672.4,2672.3,2.3899182]
[1724410500852,6.09477913,2672.4,2672.3,2.81836678]
[1724410501276,3.74195,2672.4,2672.3,2.81836678]
[1724410501862,8.0339,2672.4,2672.3,2.81836678]
[1724410502062,10.38672913,2672.4,2672.3,0.0639182]
[1724410502267,8.0339,2672.4,2672.3,0.0639182]
[1724410502411,3.74223,2672.2,2672.1,2.4104]
[1724410508887,3.74237,2672.1,2672.0,14.945]
[1724410511006,3.74237,2672.1,2672.0,15.00890263]
[1724410512029,2.35107537,2672.3,2672.1,2.3553]
[1724410512189,10.38519537,2672.4,2672.1,4.09172026]
[1724410512387,3.74206,2672.4,2672.2,0.06373441]
[1724410514372,7.4841,2672.4,2672.2,0.06373441]
[1724410514608,3.74204,2672.4,2672.2,0.06373441]
[1724410515169,7.48409,2672.4,2672.2,0.06373441]
[1724410516335,3.74209,2672.3,2672.2,0.06373441]
[1724410518195,3.74209,2672.3,2672.0,14.945]
[1724410518428,3.74209,2672.3,2672.2,0.06373441]
[1724410518634,3.74209,2672.3,2672.1,0.06381851]
[1724410518921,3.74209,2672.3,2672.0,14.945]
[1724410518922,3.74237,2672.1,2672.0,14.945]
[1724410525373,6.0938895,2672.1,2672.0,14.945]
[1724410525982,6.0938895,2672.1,2672.0,15.00689034]
[1724410526491,3.74237,2672.1,2672.0,15.00689034]
[1724410527494,7.48474,2672.1,2672.0,15.00689034]
[1724410531740,7.48474,2672.1,2672.0,17.30779034]
[1724410531940,3.74237,2672.1,2672.0,17.35066585]
[1724410532171,3.74237,2672.1,2672.0,19.08573243]
[1724410533093,2.35295217,2672.3,2672.1,2.3009]
[1724410533235,2.35295217,2672.4,2672.1,2.3009]
[1724410533436,6.09483217,2672.5,2672.2,0.10450338]
[1724410533700,2.35295217,2672.5,2672.3,2.3009]
[1724410533853,2.35295217,2672.6,2672.3,2.48015137]
[1724410534243,6.09463217,2672.6,2672.3,2.48015137]
[1724410534486,3.74168,2672.6,2672.3,2.48015137]
[1724410536453,2.35295217,2672.7,2672.3,2.48015137]
[1724410536658,6.09435217,2672.8,2672.5,2.3059]
[1724410537095,3.7414,2672.8,2672.6,0.10390205]
[1724410537877,2.35295217,2672.9,2672.6,1.27938402]
[1724410538077,3.7412,2673.0,2672.7,2.2657]
[1724410538078,6.09415217,2673.0,2672.7,2.2657]
[1724410538395,6.09415217,2673.0,2672.8,0.10373053]
[1724410538614,9.83534217,2673.0,2672.7,2.2657]
[1724410538928,6.09414217,2673.0,2672.9,0.10364478]
[1724410539133,6.09356899,2673.0,2672.8,0.10373053]
[1724410539277,3.74085,2673.2,2672.9,2.60628783]
[1724410539278,2.35237899,2673.2,2672.9,2.60628783]
[1724410539478,3.74084,2673.2,2672.9,2.60628783]
[1724410539673,3.74099,2673.1,2672.9,2.36934478]
[1724410541311,3.74111,2673.0,2672.9,0.10364478]
[1724410541828,3.74111,2673.0,2672.9,0.10215845]
[1724410542033,3.74111,2673.0,2672.7,2.3956]
[1724410542034,3.74125,2672.9,2672.7,2.3956]
[1724410547045,3.74111,2673.0,2672.7,2.3956]
[1724410550216,3.74125,2672.9,2672.5,8.5106536]
[1724410550415,3.74142,2672.8,2672.4,2.3321]
[1724410550690,3.74155,2672.7,2672.4,2.3321]
[1724410552927,3.74134,2672.9,2672.4,2.3321]
[1724410553112,3.74154,2672.7,2672.4,2.3321]
[1724410554132,4.29142,2672.8,2672.4,2.3321]
[1724410554848,3.74153,2672.7,2672.4,2.3321]
[1724410555419,4.2914,2672.8,2672.4,2.3321]
[1724410555619,0.55,2672.8,2672.4,2.3321]
[1724410555830,0.55,2672.8,2672.5,0.10214295]
[1724410556035,0.55,2672.8,2672.6,2.2835]
[1724410556242,0.55,2672.8,2672.6,2.38555719]
[1724410556442,3.74113,2673.0,2672.6,2.38555719]
[1724410557059,7.48212,2673.1,2672.6,2.38555719]
[1724410557270,0.55,2673.0,2672.8,2.2835]
[1724410557597,3.74105,2673.1,2672.8,2.2835]
[1724410557751,3.74105,2673.1,2672.9,0.10179992]
[1724410559533,3.74111,2673.0,2672.9,0.10179992]
[1724410560985,7.48222,2673.0,2672.9,0.10179992]
[1724410561272,3.51782163,2673.3,2672.3,3.74201]
[1724410561273,3.74153,2672.7,2672.3,1.1006536]
[1724410561471,3.74181,2672.5,2672.3,3.0]
[1724410561671,3.74181,2672.5,2672.4,0.10179799]
[1724410563575,3.74167,2672.6,2672.4,0.10179799]
[1724410564231,3.74126,2672.9,2672.5,3.5197536]
[1724410564436,3.74126,2672.9,2672.6,0.10152128]
[1724410564893,7.4826,2672.9,2672.6,0.10152128]
[1724410565374,3.74142,2672.8,2672.6,0.10152128]
[1724410566240,3.74126,2672.9,2672.6,0.10152128]
[1724410566478,3.74126,2672.9,2672.6,0.72777841]
[1724410569593,3.74126,2672.9,2672.6,0.10152128]
[1724410569966,3.74147,2672.8,2672.6,0.10152128]
[1724410570766,4.29153,2672.7,2672.6,0.10152128]
[1724410570969,4.29153,2672.7,2672.3,5.4094]
[1724410571169,4.29153,2672.7,2672.6,0.10152128]
[1724410571365,4.29153,2672.7,2672.3,5.4094]
[1724410571563,4.29153,2672.7,2672.6,0.10152128]
[1724410571769,4.29153,2672.7,2672.3,5.4094]
[1724410572001,4.29153,2672.7,2672.6,0.10152128]
[1724410572216,4.29153,2672.7,2672.3,7.17562636]
[1724410572372,4.29153,2672.7,2672.6,0.10152128]
[1724410572573,4.29153,2672.7,2672.3,7.17562636]
[1724410572793,4.29153,2672.7,2672.6,0.10152128]
[1724410573014,4.29153,2672.7,2672.3,7.17562636]
[1724410573299,4.29153,2672.7,2672.4,1.83278364]
[1724410573459,4.29153,2672.7,2672.4,1.9345816]
[1724410577506,4.29153,2672.7,2672.4,0.10179796]
[1724410581196,0.55,2672.7,2672.4,0.10179796]
[1724410581628,0.55,2672.7,2672.5,0.58554256]
[1724410581920,0.55,2672.7,2672.3,7.2520736]
[1724410581921,0.55,2672.7,2672.6,0.10162641]
[1724410582453,0.55,2672.7,2672.3,7.2520736]
[1724410582645,0.55,2672.7,2672.4,2.52777256]
[1724410582842,0.55,2672.7,2672.4,1.94221632]
[1724410585838,2.90458442,2672.7,2672.4,1.94221632]
[1724410586159,2.90458442,2672.7,2672.4,0.10179796]
[1724410588172,0.55,2672.7,2672.4,0.10179796]
[1724410588372,2.90532977,2672.7,2672.4,0.10179796]
[1724410589976,2.90532977,2672.7,2672.5,0.58555423]
[1724410590141,2.90532977,2672.7,2672.4,0.10179796]
[1724410590493,2.90532977,2672.7,2672.5,0.68723386]